Cogmind - Beta 15 @@@ ROGUE MODE // 2025.07.22 @ 15:08:00 Player: Skysub Result: Destroyed by Y-45 Defender with Beam Rifle Performance ------------- Evolutions (0) 0 Regions Visited (3) 600 Robots Destroyed (27) 135 Value Destroyed (651) 651 Prototype IDs (12) 240 Alien Tech Used (0) 0 Bonus (76) 76 TOTAL SCORE: 1702 Bonus ------- Follower Combat Kills 117 Friendly Fire -41 Cogmind --------- Core Integrity 0/250 Matter 290/300 Energy 50/100 System Corruption 0% Temperature Cool (9) Movement Rolling (175) Ox5 Location -8/Recycling Parts ------- > --- POWER (1) -------- Subdweller Power Source > --- PROPULSION (2) --- Spiked Treads Compact Wheel > --- UTILITY (2) ------ Huge Storage Unit Makeshift Thermal Plating > --- WEAPON (2) ------- Subdweller Laser Makeshift Hammer > --- INVENTORY (25) --- Subdweller Power Source Meta Core Makeshift Leg Makeshift Leg Makeshift Leg Subdweller Monowheel Subdweller Monowheel Subdweller Monowheel Makeshift Flight Unit Makeshift Flight Unit Structural Scanner Subdweller Optics Advanced Targeting Computer Advanced Targeting Computer Scrap Shield V3-11A's Pendant Medium Laser Small Laser Subdweller Beam Cannon Subdweller Machine Gun Grenade Launcher Mining Laser Plasma Cutter Mace Peak State ------------ > --- POWER ------------ Subdweller Power Source > --- PROPULSION ------- Spiked Treads Compact Wheel > --- UTILITY ---------- Huge Storage Unit Makeshift Thermal Plating > --- WEAPON ----------- Grenade Launcher Makeshift Hammer > --- INVENTORY -------- Subdweller Power Source Meta Core Makeshift Leg Makeshift Leg Makeshift Leg Subdweller Monowheel Subdweller Monowheel Subdweller Monowheel Makeshift Flight Unit Makeshift Flight Unit Structural Scanner Subdweller Optics Advanced Targeting Computer Advanced Targeting Computer Scrap Shield V3-11A's Pendant Medium Laser Small Laser Subdweller Laser Subdweller Beam Cannon Subdweller Machine Gun Mining Laser Plasma Cutter Mace [Rating: 22] Favorites ----------- Power Subdweller Power Source Engine Subdweller Power Source Propulsion Compact Wheel Treads Light Treads Wheel Compact Wheel Utility Huge Storage Unit Device V3-11A's Pendant Storage Huge Storage Unit Protection Makeshift Thermal Plating Weapon Subdweller Machine Gun Energy Gun Small Laser Ballistic Gun Subdweller Machine Gun Launcher Grenade Launcher Special Weapon Mining Laser Impact Weapon Makeshift Hammer Build | -11 -10 -10 -8 ------- Run | Yrd Mat Sub Rec Slots Evolved . | . . . . Power . | . . . . Propulsion . | . . . . Utility . | . . . . Weapon . | . . . . Parts Attached 26 | 6 8 9 3 Power 3 | 1 1 1 . Engine 3 | 1 1 1 . Core . | . . . . Reactor . | . . . . Propulsion 7 | 2 2 3 . Treads 4 | 2 1 1 . Leg . | . . . . Wheel 3 | . 1 2 . Hover . | . . . . Flight . | . . . . Utility 6 | 1 3 1 1 Device 2 | . 1 1 . Storage 3 | 1 2 . . Processor . | . . . . Hackware . | . . . . Protection 1 | . . . 1 Artifact . | . . . . Weapon 10 | 2 2 4 2 Energy Gun 3 | 1 . 1 1 Energy Cannon . | . . . . Ballistic Gun 3 | 1 1 1 . Ballistic Cannon . | . . . . Launcher 2 | . 1 1 . Special Weapon 1 | . . 1 . Impact Weapon 1 | . . . 1 Slashing Weapon . | . . . . Piercing Weapon . | . . . . Special Melee Weapon . | . . . . Unidentified Prototypes 1 | . . 1 . Parts Lost 10 | . 4 6 . Power 2 | . 1 1 . Propulsion 4 | . 2 2 . Utility . | . . . . Weapon 4 | . 1 3 . Highest Loss Streak 2 | . 2 2 . To Critical Strikes . | . . . . Average Backups 14 | 2 5 16 23 Power . | . . . 1 Propulsion 5 | 1 2 6 8 Utility 3 | . 1 4 7 Weapon 4 | . 2 4 6 Tool/Special . | . . . . Unused Backups 19 | . . . 19 Power 1 | . . . 1 Propulsion 9 | . . . 9 Utility 4 | . . . 4 Weapon 3 | . . . 3 Tool/Special 2 | . . . 2 Average Slot Usage (%) 93 | . 92 93 100 Engine 10 | . 13 8 14 Treads 14 | . 18 14 14 Wheel 12 | . 6 14 14 Device 13 | . 11 14 13 Storage 14 | . 14 14 14 Energy Gun 8 | . 14 7 . Ballistic Gun 9 | . 10 10 . Launcher 5 | . 3 5 13 Special Weapon 3 | . . 3 13 Peak Build Rating 22 | 6 7 18 22 Average Rating 11 | 5 6 12 18 On Entrance 7 | . 6 7 17 Naked Turns . | . . . . Heaviest Build 98 | 11 87 98 95 Greatest Support 40 | 40 40 16 16 Greatest Overweight (x) 6 | . 5 6 5 Average Overweight (x) 4 | . 1 5 5 Largest Inventory Capacity 25 | 8 25 25 25 Average Capacity 22 | 7 16 25 25 Most Carried 25 | 4 7 25 25 Average Carried 14 | 2 5 17 24 Final Capacity 25 | 8 25 25 25 Final Carried 25 | 4 7 25 25 Class Distribution -------------------- 100% | Mutant Dominant Class ---------------- Mutant | -10/Materials Mutant | -10/Subcaves Mutant | -8/Recycling Resources | -11 -10 -10 -8 ----------- Run | Yrd Mat Sub Rec Matter Collected 746 | 238 186 302 20 Remotely . | . . . . Salvage Created 816 | 163 470 132 51 Parts 42 | 8 29 4 1 Haulers Intercepted . | . . . . Recyclers Shooed 1 | . 1 . . Parts Field Recycled . | . . . . Retrieved Matter . | . . . . Parts Self-Destructed 15 | . . 15 . Prevented . | . . . . Kills | -11 -10 -10 -8 ------- Run | Yrd Mat Sub Rec Combat Hostiles Destroyed 16 | . 11 5 . Guns 9 | . 8 1 . AOE 7 | . 3 4 . Classes Destroyed 10 | 2 5 3 . Worker 2 | . 2 . . Builder 1 | . 1 . . Tunneler 4 | 3 1 . . Recycler 2 | 1 . . 1 Turret 1 | . . 1 . Watcher 1 | . 1 . . Swarmer 3 | . 3 . . Grunt 8 | . 8 . . Subdweller 5 | . . 5 . Scientist 1 | . . 1 . Best Kill Streak 4 | 4 4 3 1 Combat Bots Only 4 | . 4 3 . Max Kills in Single Turn 2 | 1 2 2 1 Gunslinging . | . . . . Exploded 2 | . 2 1 . Melee . | . . . . Uniques/NPCs Destroyed . | . . . . Combat | -11 -10 -10 -8 -------- Run | Yrd Mat Sub Rec Hostile Shots Fired 110 | . 64 37 9 Missed 24 | . 11 10 3 Hits 86 | . 53 27 6 Projectile 86 | . 53 27 6 AOE 1 | . . 1 . Damage Taken 1328 | . 617 620 91 Core 255 | . 69 173 13 Absorbed by Shields . | . . . . Ignored by Resistances 4 | . . . 4 Core Remaining (%) 100 | 100 . . . Volleys Fired 119 | 13 57 47 2 Largest 2 | 2 2 2 1 Hottest 100 | 70 80 100 60 Shots Fired 194 | 26 110 56 2 Gun 159 | 26 106 25 2 Cannon . | . . . . Launcher 15 | . 4 11 . Special 20 | . . 20 . Kinetic 90 | 13 53 24 . Thermal 93 | 13 53 25 2 Explosive 11 | . 4 7 . Electromagnetic . | . . . . Robot Hit Streak 12 | 7 12 7 4 Robot Miss Streak 4 | 3 4 1 1 Penetration Max . | . . . . Secondary Targets 1 | . 1 . . Max Gunslinging Chain 1 | . 1 . . Shots Hit Robots 97 | 13 66 16 2 Core Hits 53 | 6 30 17 . Critical Kills . | . . . . Critical Parts Destroyed . | . . . . Critical Strikes 7 | 2 4 . 1 Burn 6 | 2 4 . . Destroy 1 | . . . 1 Melee Attacks 3 | . . . 3 Impact 3 | . . . 3 Slashing . | . . . . Piercing . | . . . . Sneak Attacks . | . . . . Combat Hostiles . | . . . . Follow-up Attacks . | . . . . Damage Inflicted 2115 | 155 944 954 62 Guns 982 | 155 693 111 23 Cannons . | . . . . Explosions 1088 | . 245 843 . Melee 37 | . . . 37 Ramming 8 | . 6 . 2 Kinetic 548 | 44 245 259 . Thermal 618 | 111 448 36 23 Explosive 904 | . 245 659 . Electromagnetic . | . . . . Impact 37 | . . . 37 Slashing . | . . . . Piercing . | . . . . Highest Corruption . | . . . . Average Corruption . | . . . . Corruption Purged . | . . . . Corruption Blocked . | . . . . Overload Shots . | . . . . Overflow Damage 19 | . . 19 . Projectiles . | . . . . Explosions 19 | . . 19 . Melee . | . . . . Knockbacks . | . . . . Impact . | . . . . Kinetic . | . . . . Secondary . | . . . . Self-Inflicted Damage 33 | . . 33 . Shots 2 | . . 2 . Rammed 1 | . 1 . . Targets Rammed 2 | . 1 . 1 Kicked . | . . . . Crushed 1 | . . . 1 Highest Temperature 210 | 190 210 1 37 Average Temperature 84 | 101 83 1 22 Received Heat Transfer 465 | . 315 123 27 Siege Activations . | . . . . Martial Activations . | . . . . Shielding Activations . | . . . . Robots Disrupted . | . . . . Combat Hostiles . | . . . . Robots Corrupted . | . . . . Combat Hostiles . | . . . . Parts Fried . | . . . . Impact Corruptions . | . . . . Robots Melted . | . . . . Combat Hostiles . | . . . . Parts Melted 6 | 2 4 . . Heat Transferred 2233 | 481 1628 99 25 Parts Sabotaged . | . . . . Parts Stolen . | . . . . Parts Stripped . | . . . . Power Chain Reactions . | . . . . Alert | -11 -10 -10 -8 ------- Run | Yrd Mat Sub Rec Maximum Alert Level . | . . . . Low Security (%) 100 | 100 100 . 100 Level 1 . | . . . . Level 2 . | . . . . Level 3 . | . . . . Level 4 . | . . . . Level 5 . | . . . . High Security . | . . . . Max Security . | . . . . Peak Influence 145 | 10 145 . 56 Initial 56 | . . . 56 Average 29 | . 39 . 13 Influence Increases 805 | 20 407 279 99 Destroy 0b10 Robot/C 360 | . 220 120 20 Destroy 0b10 Robot/NC 50 | 20 25 . 5 Destroy Leader 52 | . 52 . . Allied During Kill 25 | . . 24 1 Successful Hack 35 | . 22 . 13 Select Force Hacks 90 | . 30 . 60 Disable Machine 45 | . 45 . . Destroy Structure 13 | . 13 . . Lose Combat Pursuer 135 | . . 135 . Influence Decreases 805 | 20 407 161 217 Entered New Map 62 | . . . 62 Time Decay 613 | 20 377 61 155 Lost Part 50 | . 30 20 . Lost Ally 80 | . . 80 . Squads Dispatched 2 | . 2 . . Investigation 2 | . 2 . . Extermination . | . . . . Reinforcement . | . . . . Assault . | . . . . Garrison . | . . . . Intercept . | . . . . Searches Triggered . | . . . . Construction Impeded . | . . . . Haulers Reinforced . | . . . . Active Scanning Responses . | . . . . Cargo Convoy Interrupts . | . . . . Stealth | -11 -10 -10 -8 --------- Run | Yrd Mat Sub Rec Distress Signals 1 | . 1 . . Communications Jammed . | . . . . Distress Signals . | . . . . Times Spotted 42 | . 22 18 2 Peak Tracking Total 4 | . 4 4 2 Tactical Retreats 2 | . . 2 . Traps | -11 -10 -10 -8 ------- Run | Yrd Mat Sub Rec Traps Triggered 1 | . 1 . . Indirectly . | . . . . Trap Hack Attempts . | . . . . Triggered . | . . . . Disarmed . | . . . . Reprogrammed . | . . . . Reused . | . . . . Traps Extracted . | . . . . Installed . | . . . . Triggered . | . . . . Machines | -11 -10 -10 -8 ---------- Run | Yrd Mat Sub Rec Machines Disabled 7 | . 3 4 . Max in Single Turn 2 | . 2 2 . Machines Repaired . | . . . . Machines Dismantled . | . . . . Machines Sabotaged . | . . . . Overloaded Fab Kills . | . . . . Hacking | -11 -10 -10 -8 --------- Run | Yrd Mat Sub Rec Machines Accessed 16 | . 7 2 7 Terminals 11 | . 6 . 5 Fabricators . | . . . . Repair Stations . | . . . . Recycling Units 3 | . 1 . 2 Scanalyzers . | . . . . Garrison Access . | . . . . Total Hacks 45 | . 19 5 21 Successful 29 | . 14 5 10 Failed 16 | . 5 . 11 Catastrophic 4 | . . . 4 Database Lockouts . | . . . . Manual 32 | . 16 . 16 Terminals 32 | . 17 . 15 Fabricators . | . . . . Repair Stations . | . . . . Recycling Units 8 | . 2 . 6 Scanalyzers . | . . . . Garrison Access . | . . . . Terminal Hacks 8 | . 2 5 1 Record 4 | . . 4 . Terminal Index 1 | . 1 . . Locate Traps 1 | . 1 . . Zone Layout 1 | . . . 1 Proto ID Catalog 1 | . . 1 . Fabricator Hacks . | . . . . Repair Station Hacks . | . . . . Recycling Unit Hacks 3 | . 1 . 2 Report Inventory 3 | . 1 . 2 Scanalyzer . | . . . . Garrison Access Hacks . | . . . . Unauthorized Hacks 18 | . 11 . 7 Terminals 15 | . 10 . 5 Botnet 5 | . 4 . 1 Skim 10 | . 6 . 4 Fabricators . | . . . . Repair Stations . | . . . . Recycling Units 3 | . 1 . 2 Tunnel 3 | . 1 . 2 Scanalyzers . | . . . . Garrison Access . | . . . . Data Cores Recovered . | . . . . Used . | . . . . Hacking Detections 10 | . 5 . 5 Full Trace Events 2 | . 1 . 1 Feedback Events . | . . . . Feedback Blocked . | . . . . Robot Schematics Acquired . | . . . . Robots Built . | . . . . Authchips . | . . . . Time . | . . . . Total Robot Build Rating . | . . . . Part Schematics Acquired . | . . . . Parts Built . | . . . . Authchips . | . . . . Time . | . . . . Total Part Build Rating . | . . . . Parts Repaired . | . . . . Time . | . . . . Parts Recycled . | . . . . Recycled Matter . | . . . . Retrieved Matter . | . . . . Retrieved Components . | . . . . Parts Scanalyzed . | . . . . Part Schematics Acquired . | . . . . Parts Damaged . | . . . . Bothacking | -11 -10 -10 -8 ------------ Run | Yrd Mat Sub Rec Used RIF Installer . | . . . . Robots Hacked . | . . . . Non-combat . | . . . . Combat . | . . . . Robot Hacks Applied . | . . . . Relay Couplers Released . | . . . . Fabnet Peak Effective % . | . . . . Robots Rewired . | . . . . Allies Hacked . | . . . . Hacks Repelled . | . . . . Allies | -11 -10 -10 -8 -------- Run | Yrd Mat Sub Rec Total Allies 6 | . . 6 . Largest Group 5 | . . 5 1 Highest-Rated Group 95 | . . 95 19 Highest-Rated Ally 19 | . . 19 19 Total Orders . | . . . . Ally Attacks 33 | . . 29 4 Total Damage 460 | . . 378 82 Kills 8 | . . 7 1 Allies Corrupted . | . . . . Allies Melted . | . . . . Intel | -11 -10 -10 -8 ------- Run | Yrd Mat Sub Rec Active Infowar (turns) 2231 | . 1209 1022 . Structural 2231 | . 1209 1022 . Robot Analysis Total . | . . . . Derelict Logs Recovered 2 | . . 2 . Drone Launches . | . . . . Drone Recoveries . | . . . . Exploration | -11 -10 -10 -8 ------------- Run | Yrd Mat Sub Rec Turns Passed 6129 | 127 1453 3962 587 Spaces Moved 2736 | 58 528 1835 315 Core 13 | 13 . . . Treads 370 | 45 325 . . Legs . | . . . . Wheels 2353 | . 203 1835 315 Hover . | . . . . Flight . | . . . . Fastest Speed 50 | 50 115 175 175 Average Speed 175 | 135 179 175 175 Slowest Speed 240 | 160 240 190 175 Overloaded Moves . | . . . . Propulsion Burnouts . | . . . . Robots Hopped . | . . . . Potential Cave-ins . | . . . . Cave-ins Triggered . | . . . . Exploration Rate (%) 61 | 4 86 79 77 Regions Visited 3 Branch Regions 2 Pre-discovered Areas 5 | . 3 . 2 Known Exits Taken 1 | . . 1 . Unknown Exits Taken 2 | 1 1 . . Scrap Searched 7 | . . 7 . Spaces Dug . | . . . . Terrain Destroyed 77 | . 11 66 . Melee . | . . . . Projectile . | . . . . AOE 77 | . 11 66 . Terrain Rammed . | . . . . Walls Destroyed . | . . . . Machines Disabled . | . . . . Actions | -11 -10 -10 -8 --------- Run | Yrd Mat Sub Rec Total 3834 | 81 933 2478 342 Wait 905 | . 335 560 10 Move 2733 | 57 527 1834 315 Hop . | . . . . Pick Up 35 | 5 5 21 4 Fast Attach 7 | 5 1 1 . Attach 10 | 1 4 5 . Detach . | . . . . Swap 14 | . 3 8 3 Drop 4 | . . . 4 Fire 119 | 13 57 47 2 Melee 3 | . . . 3 Ram . | . . . . Kick . | . . . . Crush 2 | . 1 . 1 Escape Stasis . | . . . . Rewire 2 | . . 2 . Trap . | . . . . Miscellaneous . | . . . . Route ------- -11/Scrapyard -10/Materials (discovered 5 exits: *Mat x3 / [*Min] / *Sub) -10/Subcaves (discovered 3 exits: *Mat x2 / *Rec) -8/Recycling History --------- Turn | Location | Event 10 | -11/Scrapyard | Discovered new exit (range 15) 128 | -11/Scrapyard | Entered Materials 175 | -10/Materials | Discovered new exit (range 7) 285 | -10/Materials | Discovered new exit (range 14) 300 | -10/Materials | Build established: Mutant 374 | -10/Materials | Discovered new exit (range 12) 451 | -10/Materials | Discovered new exit (range 15) 1102 | -10/Materials | Discovered new exit (range 12) 1370 | -10/Materials | Identified exit to Materials 1430 | -10/Materials | Learned location of Recycling (-8) 1443 | -10/Materials | Learned location of 2 exits from Mines 1444 | -10/Materials | Learned location of Subcaves (-10) 1478 | -10/Materials | Learned location of 2 exits from Subcaves 1581 | -10/Materials | Entered Subcaves 1582 | -10/Subcaves | Approached by a straggling Scientist 1582 | -10/Subcaves | Identified exit to Recycling 1583 | -10/Subcaves | Identified exit to Materials 1743 | -10/Subcaves | Visited Clippyterm 1749 | -10/Subcaves | Learned Research machine intel 2129 | -10/Subcaves | Core integrity fell below 50% 2505 | -10/Subcaves | Core integrity fell below 20% 2592 | -10/Subcaves | Visited triangular shrine 2603 | -10/Subcaves | Found Prototype Device 2603 | -10/Subcaves | Identified V3-11A's Pendant 2608 | -10/Subcaves | Befriended Subdweller 2657 | -10/Subcaves | Shifting Twisted Machinery released Shrapnel Trap 2669 | -10/Subcaves | Shifting Twisted Machinery released Sub. Laser 3373 | -10/Subcaves | Befriended Subdweller 3448 | -10/Subcaves | Befriended Subdweller 3453 | -10/Subcaves | Befriended Subdweller 3724 | -10/Subcaves | Disturbed a concealed Subdweller 3728 | -10/Subcaves | Befriended Subdweller 4438 | -10/Subcaves | Befriended Subdweller 4469 | -10/Subcaves | Shifting Twisted Machinery released Battle Rifle 4469 | -10/Subcaves | Lost 5 allies 4665 | -10/Subcaves | Shifting Twisted Machinery released Battle Cannon 5170 | -10/Subcaves | Visited 4L-MR0's lab 5188 | -10/Subcaves | Found Meta Core 5543 | -10/Subcaves | Entered Recycling 5543 | -8/Recycling | Accompanied by 1 ally 5749 | -8/Recycling | Scanned before Scraplab entrance 6130 | -8/Recycling | Destroyed by Y-45 Defender with Beam Rifle Last Messages --------------- Spk. Treads (71%) Lgt. Treads (7%) >>Force(Tunnel) DISCOVERED[-5/Hub_04(d)] 05993_ Dropped Sml. Storage Unit. 05993_ Dropped Lrg. Storage Unit. 05994_ Acquired Plasma Cutter. 05996_ R-06 Scavenger collects Sml. Storage Unit. 05999_ R-06 Scavenger collects Lrg. Storage Unit. 06014_ Acquired Mace. 06102_ Y-45 Defender springs to life. 06104_ 6G-7KN(R) destroyed. 06104_ Crushed R-06 Scavenger. 06104_ R-06 Scavenger destroyed. 06111_ Acquired 10 matter. 06123_ Y-45 Defender suffers critical hit (Destroy). 06123_ Destroyed Lgt. Armor Plating. Map ----- +----------------------------------------------------+ | """"" #### #?????????????????????????????????? | | / + #???##????????????????????????????? | | ######### # #??## #######?????????????????????? | | ??????### # #??# #?????????????????????? | | ####### # # #??# ##????????????????????? | | # # #??# ?????????????????????? | | # # #??# #?????????????????????? | | ! # # #??# #?????????????????????? | | # # "" #??# #?????????????????????? | | # # T" #??# #?????????????????????? | | # # "" #??# #?????????????????????? | | # # #??# #?????????????????????? | | # ###+#########+#########????????????????? | | ] # #????????????????? | | + ###??????????????? | | # = #??????????????? | | ###"Y"#########u##### ==#??????????????? | | #?#"""#??# #?# ==#??????????????? | | #########?#####??# #?# ###??????????????? | | ?????????????????# #?# #????????????????? | | ?????????????????# #?# #????????????????? | | ?????????????????# #?# #????????????????? | | ?????????????????# #?# #????????????????? | | ?????????????????# ### #????????????????? | | ?????????????????# Y %= #????????????????? | | ?????????????????# @### #????????????????? | | ?????????????????####r#####?# #????????????????? | | ????????????????????##??????#& +????????????????? | | ????????????????????????????#%& #????????????????? | | ????????????????????????????# #????????????????? | | ???????????????????????????? #????????????????? | | ????????????????????????????# #????????????????? | | ????????????????????????????# #????????????????? | | ????????????????????????????? #????????????????? | | ????????????????????????????? #????????????????? | | ????????????????????????????? ????????????????? | | ????????????????????????????? "????????????????? | | ????????????????????????????? #????????????????? | | ????????????????????????????? ????????????????? | | ????????????????????????????? ?????????????????? | | ?????????????????????????????????????????????????? | | ?????????????????????????????????????????????????? | | ?????????????????????????????????????????????????? | | ?????????????????????????????????????????????????? | | ?????????????????????????????????????????????????? | | ?????????????????????????????????????????????????? | | ?????????????????????????????????????????????????? | | ?????????????????????????????????????????????????? | | ?????????????????????????????????????????????????? | | ?????????????????????????????????????????????????? | +----------------------------------------------------+ Best States ------------- Heat Dissipation 25 Energy Generation 15 Energy Capacity 200 Matter Stores 300 Matter Capacity 300 Sight Range 16 Terrain Scan Density 10 Armor Coverage 100 Resistance: TH 10 Evasion (%) 40 Recoil Reduction 2 Item Schematics ----------------- None Robot Schematics ------------------ None Fabricated ------------ Nothing Repaired ---------- Nothing Alien Tech Used ----------------- None Achievements -------------- None Challenges ------------ None Game ------ Seed OvertunedExperimentalMachine Manual? 0 Play Time 00:24:56 Cumulative 172.4 hours Start 2025.07.22 @ 14:43:12 End 2025.07.22 @ 15:08:00 Sessions 1 Manual Loads 0 Difficulty Rogue Special Mode None Game No. 194 Rogue 194 Adventurer 0 Explorer 0 Win Type - Total 3 Types 1/0/0/1/0/0/0/0/0/1 Lore% 68 Gallery% 63 Achievement% 56 Wizard Run 0 Options --------- Layout 1 ASCII 0 Keyboard 1 Movement Arrows Keybinds 0 Fullscreen 1 Font 36/Smallcaps Map View 50x40 Zoom Use 0% Tactical HUD 1 Map Filters NONE Filters NONE Steam 1 RUN: 8157bef6-903a-442b-821a-24b208960701